bitfinex-derivatives/quotes_BTCF0:USTF0_20210409
["timestamp","ask_amount","ask_price","bid_price","bid_amount"]
[1617991021696,0.4475385,58399.0,58398.0,0.98867388]
[1617991022598,0.44752377,58400.0,58398.0,0.98867388]
[1617991022999,0.44735887,58401.0,58399.0,0.35984047]
[1617991023300,0.44735887,58401.0,58400.0,0.29868227]
[1617991023503,0.44735887,58401.0,58400.0,0.56868227]
[1617991023702,0.44733514,58402.0,58400.0,0.56868227]
[1617991024103,0.44713746,58404.0,58401.0,0.35933715]
[1617991024502,0.44713746,58404.0,58403.0,0.29814394]
[1617991024702,0.44713746,58404.0,58403.0,0.40540049]
[1617991025002,0.44697124,58405.0,58403.0,0.37725655]
[1617991026506,0.44684738,58406.0,58403.0,0.37725655]
[1617991027106,0.4467356,58407.0,58403.0,0.37725655]
[1617991027307,0.44672304,58406.0,58403.0,0.37725655]
[1617991027508,0.44672304,58406.0,58405.0,3.5631]
[1617991027708,0.44672272,58407.0,58405.0,3.5631]
[1617991027907,0.44672272,58407.0,58405.0,3.8331]
[1617991028110,0.10725655,58408.0,58405.0,3.8331]
[1617991029514,0.10725655,58408.0,58405.0,4.8331]
[1617991030317,0.44645488,58411.0,58405.0,4.8331]
[1617991030513,0.44643484,58412.0,58405.0,3.8331]
[1617991030717,0.44630854,58413.0,58411.0,1.10725655]
[1617991031013,0.50715497,58419.0,58411.0,1.10725655]
[1617991031014,0.44630783,58414.0,58411.0,1.24390655]
[1617991031213,0.44630783,58414.0,58412.0,0.27]
[1617991031416,0.44630783,58414.0,58412.0,1.27]
[1617991031616,0.44630783,58414.0,58413.0,3.3748]
[1617991031916,0.44615355,58416.0,58413.0,4.3748]
[1617991032115,0.44615355,58416.0,58413.0,4.6448]
[1617991032415,0.61423539,58422.0,58413.0,3.6448]
[1617991032416,0.44614779,58418.0,58413.0,3.6448]
[1617991032614,0.44614779,58418.0,58417.0,1.0]
[1617991032815,0.44614779,58418.0,58417.0,1.10725655]
[1617991033016,0.44599841,58419.0,58417.0,1.37725655]
[1617991033416,0.44599841,58419.0,58417.0,0.37725655]
[1617991034320,0.4458584,58418.0,58417.0,0.37725655]
[1617991034821,0.44574496,58421.0,58417.0,1.37725655]
[1617991035119,0.44574496,58421.0,58417.0,0.37725655]
[1617991035522,0.44570987,58422.0,58420.0,1.0]
[1617991035722,0.44570987,58422.0,58420.0,4.2147]
[1617991036022,0.44556072,58425.0,58421.0,0.27]
[1617991036221,0.44556072,58425.0,58421.0,1.27]
[1617991036422,0.44555098,58427.0,58421.0,1.27]
[1617991036626,0.44555098,58427.0,58424.0,1.0]
[1617991036823,0.44555098,58427.0,58426.0,1.10725655]
[1617991037024,0.445384,58428.0,58426.0,1.10725655]
[1617991037426,0.445384,58428.0,58426.0,0.37725655]
[1617991037726,0.445384,58428.0,58427.0,3.9787]
[1617991038225,0.445384,58428.0,58427.0,4.2487]
[1617991038525,0.44521744,58429.0,58427.0,4.2487]
[1617991038726,0.44509599,58430.0,58427.0,4.2487]
[1617991038926,0.44509599,58430.0,58429.0,1.0]
[1617991039227,0.44509599,58430.0,58429.0,1.27]
[1617991039626,0.44504952,58431.0,58429.0,1.27]
[1617991039926,0.44504952,58431.0,58429.0,0.27]
[1617991040127,0.44492986,58432.0,58429.0,0.27]
[1617991040327,0.44490646,58433.0,58429.0,1.0]
[1617991040628,0.4449152,58432.0,58430.0,0.27]
[1617991041433,2.6392,58431.0,58429.0,3.378]
[1617991042131,2.6392,58431.0,58430.0,0.27]
[1617991042948,3.19116135,58431.0,58430.0,0.27]
[1617991043933,2.74645655,58431.0,58430.0,0.27]
[1617991044936,3.19098377,58431.0,58430.0,0.27]
[1617991045937,0.10725655,58431.0,58430.0,0.27]
[1617991046437,0.10725655,58431.0,58427.0,0.27]
[1617991046638,0.10725655,58431.0,58430.0,0.27]
[1617991046941,0.10725655,58431.0,58426.0,0.10725655]
[1617991047139,0.55169016,58431.0,58430.0,0.27]
[1617991047352,0.10725655,58431.0,58430.0,0.27]
[1617991047595,3.07665655,58431.0,58426.0,0.10725655]
[1617991047856,3.07665655,58431.0,58428.0,0.27]
[1617991048052,3.52108925,58431.0,58426.0,0.10725655]
[1617991048246,3.52108925,58431.0,58429.0,0.27]
[1617991048452,0.44440765,58430.0,58429.0,0.27]
[1617991048640,0.44440765,58430.0,58427.0,0.27]
[1617991048865,0.44440765,58430.0,58426.0,0.10725655]
[1617991049142,0.44441509,58429.0,58428.0,0.27]
[1617991049543,0.44441509,58429.0,58427.0,0.27]
[1617991049741,0.44441509,58429.0,58426.0,0.10725655]
[1617991049972,0.44441509,58429.0,58428.0,0.27]
[1617991050143,1.0,58430.0,58427.0,0.27]
[1617991050466,3.07665655,58431.0,58413.0,0.4584]
[1617991050467,3.4634,58427.0,58413.0,0.4584]
[1617991050675,3.58341,58427.0,58413.0,0.4584]
[1617991051003,0.44445194,58425.0,58414.0,0.27]
[1617991051142,1.0,58420.0,58414.0,0.27]
[1617991051569,0.44447109,58423.0,58414.0,0.27]
[1617991051975,0.44451019,58422.0,58414.0,0.27]
[1617991053045,0.10725655,58415.0,58414.0,0.27]
[1617991053544,0.10725655,58415.0,58411.0,0.27]
[1617991054044,0.10725655,58415.0,58414.0,0.27]
[1617991054246,0.10725655,58415.0,58411.0,0.27]
[1617991054447,0.23352655,58415.0,58414.0,0.27]
[1617991054946,0.23352655,58415.0,58411.0,0.27]
[1617991055146,0.23352655,58415.0,58414.0,0.27]
[1617991055346,0.23352655,58415.0,58411.0,0.27]
[1617991055546,0.23352655,58415.0,58414.0,2.8113]
[1617991055949,0.23352655,58415.0,58414.0,3.0813]
[1617991057850,0.10725655,58415.0,58414.0,3.0813]
[1617991060054,0.10725655,58415.0,58414.0,0.27]
[1617991060273,3.43595655,58415.0,58414.0,0.27]
[1617991060467,3.43595655,58415.0,58411.0,0.27]
[1617991060738,3.54086655,58415.0,58411.0,0.27]
[1617991060954,3.98588684,58415.0,58414.0,0.27]
[1617991061154,3.98588684,58415.0,58411.0,0.27]
[1617991061570,0.4450255,58414.0,58410.0,0.10725655]
[1617991061778,0.4450255,58414.0,58412.0,0.27]
[1617991062156,0.4450255,58414.0,58411.0,0.27]
[1617991062357,0.4450255,58414.0,58410.0,0.10725655]
[1617991062557,3.54086655,58415.0,58413.0,0.27]
[1617991062764,0.44513975,58414.0,58411.0,0.27]
[1617991063158,0.44513975,58414.0,58410.0,0.10725655]
[1617991063373,0.44521934,58413.0,58412.0,0.27]
[1617991063766,0.44521888,58414.0,58411.0,0.27]
[1617991063972,0.44525092,58413.0,58412.0,0.27]
[1617991064361,0.44525092,58413.0,58411.0,0.27]
[1617991064768,0.44525092,58413.0,58412.0,0.27]
[1617991065063,0.44525092,58413.0,58411.0,0.27]
[1617991065261,0.44525092,58413.0,58412.0,0.27]
[1617991065463,3.54086655,58415.0,58412.0,0.27]
[1617991065662,3.54086655,58415.0,58411.0,0.27]
[1617991065863,0.44548165,58413.0,58411.0,0.27]
[1617991066063,0.44551845,58412.0,58410.0,0.10725655]
[1617991066291,0.44561757,58411.0,58410.0,0.10725655]
[1617991066678,0.44560971,58412.0,58410.0,0.37725655]
[1617991067165,0.44564346,58411.0,58410.0,0.37725655]
[1617991068768,0.44575385,58412.0,58410.0,0.37725655]
[1617991068970,0.44573888,58413.0,58410.0,0.37725655]
[1617991069370,0.44579717,58414.0,58410.0,0.37725655]
[1617991070172,3.43595655,58415.0,58410.0,0.37725655]
[1617991070173,0.44583281,58413.0,58410.0,0.37725655]
[1617991071172,0.44593707,58412.0,58410.0,0.37725655]
[1617991071372,0.44604125,58411.0,58410.0,0.37725655]
[1617991075778,3.43595655,58415.0,58410.0,0.37725655]
[1617991076189,0.44646336,58411.0,58410.0,0.37725655]
[1617991077582,0.50751518,58414.0,58410.0,0.37725655]
[1617991077793,0.50772098,58413.0,58410.0,0.37725655]
[1617991078083,0.44681957,58411.0,58410.0,0.37725655]
[1617991078384,0.95469563,58411.0,58410.0,0.37725655]
[1617991080484,0.50787606,58411.0,58410.0,0.37725655]
[1617991080685,0.9549016,58411.0,58410.0,0.37725655]
[1617991082089,0.44702554,58411.0,58410.0,0.37725655]
[1617991082491,0.955025,58411.0,58410.0,0.37725655]
[1617991082690,0.44702554,58411.0,58410.0,0.37725655]
[1617991083494,0.95505678,58411.0,58410.0,0.37725655]
[1617991091405,3.43595655,58415.0,58410.0,0.37725655]
[1617991091605,0.95512845,58411.0,58410.0,0.37725655]
[1617991091806,1.32094945,58411.0,58410.0,0.37725655]
[1617991092807,4.59014945,58411.0,58410.0,0.37725655]
[1617991093107,5.22432845,58411.0,58410.0,0.27]
[1617991093509,7.22947328,58411.0,58400.0,0.27]
[1617991094011,0.44703624,58401.0,58395.0,0.29849066]
[1617991094217,0.44703624,58401.0,58393.0,0.35818879]
[1617991094218,1.0955455,58401.0,58400.0,0.27]
[1617991094710,1.0955455,58401.0,58386.0,0.29906891]
[1617991094711,6.6191455,58401.0,58386.0,0.29906891]
[1617991095109,0.4470838,58387.0,58385.0,0.2990885]
[1617991095310,0.10725655,58386.0,58384.0,0.29911025]
[1617991095610,3.3576,58385.0,58384.0,0.56911025]
[1617991095808,3.3576,58385.0,58384.0,0.29911025]
[1617991096212,3.3576,58385.0,58384.0,0.56911025]
[1617991096411,1.55418727,58386.0,58384.0,0.27]
[1617991096610,0.55418727,58386.0,58385.0,3.0764]
[1617991096910,0.55403807,58386.0,58385.0,3.0764]
[1617991097210,0.55403807,58386.0,58385.0,3.3364]
[1617991097612,0.10725655,58386.0,58385.0,3.3364]
[1617991098713,1.10725655,58386.0,58385.0,3.3364]
[1617991098911,0.10725655,58386.0,58385.0,3.3364]
[1617991099314,0.10725655,58386.0,58385.0,3.44365655]
[1617991099916,0.44650302,58390.0,58385.0,3.55291655]
[1617991100235,0.44649665,58392.0,58385.0,3.85150226]
[1617991100618,0.44648445,58393.0,58385.0,3.85150226]
[1617991100835,0.44648445,58393.0,58386.0,1.0]
[1617991101032,0.44648445,58393.0,58386.0,1.29852414]
[1617991101331,0.55377263,58394.0,58392.0,0.10725655]
[1617991101721,0.55377263,58394.0,58393.0,0.27]
[1617991101919,0.55377263,58394.0,58393.0,3.1729]
[1617991103020,0.55377263,58394.0,58393.0,0.27]
[1617991103319,3.59687263,58394.0,58393.0,0.27]
[1617991107621,3.15035655,58394.0,58393.0,0.27]
[1617991108222,3.59695093,58394.0,58393.0,0.27]
[1617991111724,3.15035655,58394.0,58393.0,0.27]
[1617991112222,3.64877266,58394.0,58393.0,0.27]
[1617991112424,3.59697266,58394.0,58393.0,0.27]
[1617991115232,3.64857266,58394.0,58393.0,0.27]
[1617991115430,3.59697266,58394.0,58393.0,0.27]
[1617991120938,4.1044065,58394.0,58393.0,0.27]
[1617991121565,3.59697266,58394.0,58393.0,0.27]
[1617991123344,4.10438327,58394.0,58393.0,0.27]
[1617991123543,3.59697266,58394.0,58393.0,0.27]
[1617991125469,4.10438531,58394.0,58393.0,0.27]
[1617991126147,4.30438531,58394.0,58393.0,0.27]
[1617991126420,5.30438531,58394.0,58388.0,0.27]
[1617991126845,5.30438531,58394.0,58382.0,0.27]
[1617991127049,0.95398688,58389.0,58380.0,0.26]
[1617991127246,0.95398688,58389.0,58379.0,0.27]
[1617991127447,0.10725655,58381.0,58379.0,0.27]
[1617991127646,0.24584655,58381.0,58377.0,0.65637526]
[1617991127852,0.24584655,58381.0,58377.0,0.10725655]
[1617991128166,0.24584655,58381.0,58378.0,0.27]
[1617991135861,0.69233218,58381.0,58378.0,0.27]
[1617991136360,0.24584655,58381.0,58378.0,0.27]
[1617991136562,0.69233232,58381.0,58378.0,0.27]
[1617991137366,0.24584655,58381.0,58378.0,0.27]
[1617991137563,2.5943,58379.0,58378.0,0.27]
[1617991137864,4.04075784,58379.0,58378.0,0.27]
[1617991138064,4.2232489,58379.0,58376.0,0.27]
[1617991138263,4.2232489,58379.0,58372.0,0.27]
[1617991138563,0.44652579,58377.0,58371.0,0.26]
[1617991138966,0.36534018,58372.0,58367.0,0.29965874]
[1617991139165,0.36533816,58370.0,58369.0,0.01]
[1617991139365,0.47259471,58370.0,58367.0,0.29965874]
[1617991139664,0.47259471,58370.0,58369.0,0.01]
[1617991140165,0.47259471,58370.0,58368.0,0.27]
[1617991140368,0.47259471,58370.0,58369.0,0.01]
[1617991140765,0.47259471,58370.0,58366.0,0.10725655]
[1617991140965,0.47259471,58370.0,58368.0,0.27]
[1617991141265,0.42649334,58369.0,58366.0,0.10725655]
[1617991141464,0.57419334,58369.0,58366.0,0.10725655]
[1617991141764,0.42647653,58368.0,58367.0,0.27]
[1617991143566,3.56827653,58368.0,58367.0,0.27]
[1617991148674,4.01473947,58368.0,58367.0,0.27]
[1617991149174,0.87293947,58368.0,58367.0,0.27]
[1617991149579,0.81177167,58368.0,58367.0,0.27]
[1617991150078,0.87294448,58368.0,58367.0,0.27]
[1617991150475,0.0516,58368.0,58367.0,0.27]
[1617991150876,0.81195439,58368.0,58367.0,0.27]
[1617991151476,0.8731272,58368.0,58367.0,0.27]
[1617991153378,0.8731272,58368.0,58367.0,3.0818]
[1617991154079,0.36538962,58368.0,58367.0,3.0818]
[1617991155180,0.41668962,58368.0,58367.0,3.0818]
[1617991155580,0.47785937,58368.0,58367.0,3.0818]
[1617991156782,0.42655937,58368.0,58367.0,3.0818]
[1617991156983,0.36538962,58368.0,58367.0,3.0818]
[1617991160885,0.36538962,58368.0,58367.0,0.27]
[1617991161494,3.52618962,58368.0,58367.0,0.27]
[1617991161896,3.58736,58368.0,58367.0,0.27]
[1617991166193,0.42656,58368.0,58367.0,0.27]
[1617991166595,0.36538962,58368.0,58367.0,0.27]
[1617991166894,0.4265596,58368.0,58367.0,0.27]
[1617991167094,0.42601647,58368.0,58367.0,0.27]
[1617991167496,0.3654131,58369.0,58367.0,0.56922825]
[1617991167694,0.3654131,58369.0,58367.0,1.56922825]
[1617991167896,0.44658331,58375.0,58368.0,1.0]
[1617991168097,0.44658331,58375.0,58373.0,3.4643]
[1617991168397,0.44657228,58380.0,58376.0,1.0]
[1617991168595,0.44657228,58380.0,58374.0,1.27]
[1617991168796,0.44655772,58381.0,58375.0,0.29879141]
[1617991169098,0.44657331,58382.0,58378.0,1.0]
[1617991169496,0.44657331,58382.0,58379.0,0.27]
[1617991169696,0.44656692,58383.0,58381.0,0.10725655]
[1617991170297,0.44656692,58383.0,58382.0,0.01]
[1617991170599,0.44659164,58384.0,58382.0,0.01]
[1617991170797,0.06115487,58383.0,58382.0,0.01]
[1617991170997,0.06115487,58383.0,58382.0,2.6695]
[1617991171196,0.44659164,58384.0,58382.0,2.6695]
[1617991171397,0.06115516,58383.0,58382.0,2.6695]
[1617991171597,0.44659164,58384.0,58382.0,2.6695]
[1617991171997,0.4466789,58383.0,58382.0,2.6695]
[1617991172197,0.44666808,58384.0,58382.0,2.6695]
[1617991173399,0.44670992,58383.0,58382.0,2.6695]
[1617991173600,0.50786525,58383.0,58382.0,2.6695]
[1617991174000,0.44670992,58383.0,58382.0,2.6695]
[1617991174299,0.50786494,58383.0,58382.0,2.6695]
[1617991174700,0.44670992,58383.0,58382.0,2.6695]
[1617991177601,3.2941,58388.0,58382.0,2.6695]
[1617991177803,3.2941,58388.0,58387.0,0.10725655]
[1617991178003,0.56867511,58395.0,58387.0,3.74450655]
[1617991178204,0.56867511,58395.0,58387.0,5.01450655]
[1617991178402,0.44679753,58388.0,58387.0,5.01450655]
[1617991178702,0.44678845,58389.0,58387.0,4.01450655]
[1617991178902,0.44678845,58389.0,58387.0,5.01450655]
[1617991179104,0.44679554,58391.0,58387.0,4.01450655]
[1617991179305,0.44679554,58391.0,58390.0,1.0]
[1617991179504,0.44679554,58391.0,58388.0,1.0]
[1617991179705,0.44677402,58393.0,58390.0,1.27]
[1617991179906,0.44670953,58392.0,58390.0,1.27]
[1617991180105,0.44670953,58392.0,58389.0,0.27]
[1617991180305,0.44670953,58392.0,58391.0,3.4979]
[1617991180709,0.44670953,58392.0,58391.0,3.2279]
[1617991180908,0.44670953,58392.0,58391.0,3.4979]
[1617991181806,0.55396608,58392.0,58391.0,3.4979]
[1617991182108,0.55396608,58392.0,58391.0,0.27]
[1617991182307,4.16336608,58392.0,58391.0,0.27]
[1617991182508,4.22451303,58392.0,58388.0,0.27]
[1617991182807,4.22451303,58392.0,58391.0,0.27]
[1617991183108,4.22451303,58392.0,58387.0,0.10725655]
[1617991183109,4.2243139,58392.0,58388.0,0.27]
[1617991183313,4.67107373,58392.0,58388.0,0.27]
[1617991183509,4.67107373,58392.0,58391.0,0.27]
[1617991183709,4.2243139,58392.0,58388.0,0.27]
[1617991184209,0.6149139,58392.0,58388.0,0.27]
[1617991184411,0.6149139,58392.0,58388.0,0.26941309]
[1617991185009,0.6149139,58392.0,58391.0,2.8088]
[1617991185409,0.6149139,58392.0,58391.0,3.0788]
[1617991185609,0.75543114,58392.0,58391.0,3.22485]
[1617991186409,0.64817459,58392.0,58391.0,3.22485]
[1617991187711,0.75543114,58392.0,58391.0,3.22485]
[1617991187917,0.75543114,58392.0,58391.0,3.0788]
[1617991188315,1.26305105,58392.0,58391.0,3.0788]
[1617991189612,1.06163248,58392.0,58391.0,3.0788]
[1617991190915,0.55401257,58392.0,58391.0,3.0788]
[1617991192514,0.91943771,58392.0,58391.0,3.0788]
[1617991192917,0.47268169,58392.0,58391.0,3.0788]
[1617991193116,0.91925556,58392.0,58391.0,3.0788]
[1617991194719,0.81199901,58392.0,58391.0,3.0788]
[1617991198020,0.36542514,58392.0,58391.0,3.0788]
[1617991198221,0.81181503,58392.0,58391.0,3.0788]
[1617991198621,0.36542514,58392.0,58391.0,3.0788]
[1617991199022,0.81177872,58392.0,58391.0,3.0788]
[1617991199723,0.42656941,58392.0,58391.0,3.0788]
[1617991200122,0.36542514,58392.0,58391.0,3.0788]
[1617991200322,0.42656934,58392.0,58391.0,3.0788]
[1617991200622,0.36542514,58392.0,58391.0,3.0788]
[1617991203225,0.42656724,58392.0,58391.0,3.0788]
[1617991203424,0.36542514,58392.0,58391.0,3.0788]
[1617991204323,0.36542514,58392.0,58391.0,0.27]
[1617991204524,0.36505455,58393.0,58391.0,1.27]
[1617991204823,0.36505455,58393.0,58391.0,1.0]
[1617991205024,0.36505264,58395.0,58392.0,0.27]
[1617991205525,0.36505264,58395.0,58394.0,1.0]
[1617991205726,0.36500576,58396.0,58394.0,1.0]
[1617991206025,0.36500576,58396.0,58394.0,1.37725655]
[1617991206227,0.36500576,58396.0,58394.0,0.37725655]
[1617991206425,0.36500576,58396.0,58395.0,1.0]
[1617991206626,0.36500153,58397.0,58395.0,1.0]
[1617991206827,0.3650112,58398.0,58395.0,1.27]
[1617991207036,0.3650112,58398.0,58395.0,0.27]
[1617991207227,0.36494344,58399.0,58397.0,1.0]
[1617991207626,0.36494145,58400.0,58398.0,0.27]
[1617991207828,0.36494145,58400.0,58398.0,1.27]
[1617991208049,0.36494145,58400.0,58395.0,0.27]
[1617991208233,0.36494145,58400.0,58399.0,1.0]
[1617991208525,0.36494145,58400.0,58399.0,1.27]
[1617991208729,0.36494145,58400.0,58399.0,1.0]
[1617991208929,0.36494145,58400.0,58399.0,1.27]
[1617991209629,0.36484975,58401.0,58399.0,1.27]
[1617991209834,0.36484975,58401.0,58400.0,0.10725655]
[1617991210229,0.36484975,58401.0,58400.0,1.37725655]
[1617991210633,0.36484975,58401.0,58400.0,0.37725655]
[1617991211231,0.36484975,58401.0,58400.0,1.37725655]
[1617991211632,0.36485611,58406.0,58400.0,1.37725655]
[1617991212131,0.36483558,58409.0,58404.0,1.0]
[1617991212332,0.36472101,58410.0,58404.0,0.14078]
[1617991212632,0.36472101,58410.0,58405.0,0.27]
[1617991212833,0.36475045,58411.0,58409.0,1.0]
[1617991213232,0.36475045,58411.0,58410.0,0.27]
[1617991213434,0.36475045,58411.0,58410.0,1.27]
[1617991213633,0.36475045,58411.0,58410.0,1.0]
[1617991214036,0.36465129,58412.0,58410.0,1.37725655]
[1617991214834,0.36465129,58412.0,58410.0,0.37725655]
[1617991215035,0.3645439,58413.0,58411.0,1.0]
[1617991215436,0.3645439,58413.0,58412.0,0.27]
[1617991215836,0.3645439,58413.0,58412.0,1.0]
[1617991216036,0.36447298,58414.0,58412.0,1.0]
[1617991216336,0.36447298,58414.0,58412.0,0.27]
[1617991216537,0.36447298,58414.0,58410.0,0.10725655]
[1617991216738,0.36446618,58416.0,58413.0,1.0]
[1617991217037,0.36446618,58416.0,58411.0,0.27]
[1617991217237,0.36446618,58416.0,58415.0,1.0]
[1617991217639,0.36438599,58417.0,58415.0,1.0]
[1617991217936,0.36438599,58417.0,58416.0,1.10725655]
[1617991218138,0.44543617,58421.0,58420.0,3.1709]
[1617991218739,0.80979212,58421.0,58420.0,3.4409]
[1617991218940,0.36435595,58421.0,58420.0,3.4409]
[1617991225149,0.42547895,58421.0,58420.0,3.4409]
[1617991225551,0.36435595,58421.0,58420.0,3.4409]
[1617991226852,0.80973309,58421.0,58420.0,3.4409]
[1617991227253,0.36435595,58421.0,58420.0,3.4409]
[1617991231561,0.80956333,58421.0,58420.0,3.4409]
[1617991231963,0.36435595,58421.0,58420.0,3.4409]
[1617991232377,0.80956257,58421.0,58420.0,3.4409]
[1617991233162,0.87062076,58421.0,58420.0,3.4409]
[1617991233362,0.80949832,58421.0,58420.0,3.4409]
[1617991237768,0.93223832,58421.0,58420.0,0.27]
[1617991237968,3.77223832,58421.0,58420.0,0.27]
[1617991238170,4.83336002,58421.0,58416.0,0.10725655]
[1617991238471,0.80978178,58417.0,58416.0,0.10725655]
[1617991240272,0.91703833,58417.0,58416.0,0.10725655]
[1617991240471,0.97816773,58417.0,58416.0,0.10725655]
[1617991242275,0.97816773,58417.0,58416.0,3.12305655]
[1617991242778,0.97816773,58417.0,58416.0,3.39305655]
[1617991245685,0.97816773,58417.0,58416.0,3.50479655]
[1617991246887,0.53279787,58417.0,58416.0,3.50479655]
[1617991247987,0.97844677,58417.0,58416.0,3.50479655]
[1617991248387,0.53279787,58417.0,58416.0,3.50479655]
[1617991248988,0.9785209,58417.0,58416.0,3.50479655]
[1617991249287,0.53279787,58417.0,58416.0,3.50479655]
[1617991249687,0.97853726,58417.0,58416.0,3.50479655]
[1617991249889,0.42554132,58417.0,58416.0,3.50479655]
[1617991250090,0.36441192,58417.0,58416.0,3.50479655]
[1617991250287,0.36441192,58417.0,58416.0,0.48899655]
[1617991251189,0.81032228,58417.0,58416.0,0.48899655]
[1617991252595,0.86142228,58417.0,58416.0,0.48899655]
[1617991252893,0.81032228,58417.0,58416.0,3.40509655]
[1617991261601,0.81032228,58417.0,58416.0,0.48899655]
[1617991263604,0.36441192,58417.0,58416.0,1.78654976]
[1617991264404,0.36441192,58417.0,58416.0,0.78654976]
[1617991264608,0.36441192,58417.0,58416.0,1.78654976]
[1617991265019,0.36441192,58417.0,58416.0,0.78654976]
[1617991265306,0.81166997,58417.0,58416.0,1.78654976]
[1617991265705,0.36441192,58417.0,58416.0,2.14366485]
[1617991266005,0.36441192,58417.0,58416.0,1.14366485]
[1617991266305,0.36441192,58417.0,58416.0,2.14366485]
[1617991268808,0.36441192,58417.0,58416.0,1.14366485]
[1617991269209,0.36441192,58417.0,58416.0,2.14366485]
[1617991271513,0.36441192,58417.0,58416.0,1.14366485]
[1617991271714,0.81187977,58417.0,58416.0,1.14366485]
[1617991273215,0.81187977,58417.0,58416.0,2.14366485]
[1617991273519,0.36441192,58417.0,58416.0,2.14366485]
[1617991273717,0.42552478,58417.0,58416.0,2.14366485]
[1617991273916,0.42552478,58417.0,58416.0,5.12706485]
[1617991273917,0.36441192,58417.0,58416.0,5.12706485]
[1617991275120,0.42552483,58417.0,58416.0,5.12706485]
[1617991275521,0.36441192,58417.0,58416.0,5.12706485]
[1617991276622,0.36441192,58417.0,58416.0,2.14366485]
[1617991276822,0.36441192,58417.0,58416.0,5.63836485]
[1617991276823,0.42552412,58417.0,58416.0,5.63836485]
[1617991277023,0.36441192,58417.0,58416.0,4.63836485]
[1617991277322,0.42552388,58417.0,58416.0,5.63836485]
[1617991277523,0.36441192,58417.0,58416.0,4.63836485]
[1617991277723,0.4255242,58417.0,58416.0,5.63836485]
[1617991277922,0.36441192,58417.0,58416.0,5.63836485]
[1617991279536,0.36441192,58417.0,58416.0,6.07483326]
[1617991279924,0.36441192,58417.0,58416.0,5.63836485]
[1617991280126,0.36595196,58418.0,58416.0,6.07478521]
[1617991280337,0.36595196,58418.0,58417.0,0.71574448]
[1617991280736,0.36595196,58418.0,58417.0,1.98574448]
[1617991283833,0.36595196,58418.0,58417.0,0.98574448]
[1617991284133,0.36595196,58418.0,58417.0,2.11159448]
[1617991284832,0.42969032,58418.0,58417.0,2.11159448]
[1617991285032,0.36595196,58418.0,58417.0,2.11159448]
[1617991285233,0.42968414,58418.0,58417.0,2.11159448]
[1617991285632,0.36595196,58418.0,58417.0,2.11159448]
[1617991285832,0.42967693,58418.0,58417.0,2.11159448]
[1617991286034,0.36595196,58418.0,58417.0,2.11159448]
[1617991286734,0.36595196,58418.0,58417.0,1.11159448]
[1617991287034,0.36595196,58418.0,58417.0,2.11159448]
[1617991295848,0.36571006,58419.0,58417.0,2.11159448]
[1617991296249,0.44695606,58423.0,58422.0,1.0]
[1617991296451,0.44695606,58423.0,58418.0,1.71568951]
[1617991296649,0.44695606,58423.0,58422.0,3.64665655]
[1617991296849,0.44695606,58423.0,58422.0,4.94419264]
[1617991297050,0.44695606,58423.0,58422.0,5.21419264]
[1617991297249,0.81265861,58423.0,58422.0,5.21419264]
[1617991297551,0.36570255,58423.0,58422.0,5.21419264]
[1617991298152,0.81264562,58423.0,58422.0,4.91665655]
[1617991298351,0.81264562,58423.0,58422.0,3.91665655]
[1617991302653,0.81264562,58423.0,58422.0,4.21486859]
[1617991303054,0.10725655,58437.0,58422.0,3.91665655]
[1617991303455,0.81303151,58423.0,58422.0,4.21488887]
[1617991304557,0.81303151,58423.0,58422.0,3.91665655]
[1617991306058,0.81303151,58423.0,58422.0,4.21494978]
[1617991307258,0.81303151,58423.0,58422.0,0.67554978]
[1617991307559,4.23555151,58423.0,58422.0,0.37725655]
[1617991307962,4.58596148,58423.0,58422.0,0.37725655]
[1617991308165,5.09421146,58423.0,58422.0,0.37725655]
[1617991308758,5.20146801,58423.0,58422.0,0.37725655]
[1617991309958,5.20146801,58423.0,58422.0,0.27]
[1617991310261,5.20146801,58423.0,58407.0,0.09166831]
[1617991310262,5.20146801,58423.0,58419.0,0.27]
[1617991310561,2.90366801,58423.0,58419.0,0.27]
[1617991310763,1.63568801,58423.0,58422.0,0.27]
[1617991310961,1.63568801,58423.0,58415.0,0.27]
[1617991311163,2.18772946,58423.0,58415.0,0.27]
[1617991311464,3.78125742,58416.0,58413.0,0.27]
[1617991311666,3.78125742,58416.0,58411.0,0.40655546]
[1617991311864,0.81341346,58412.0,58411.0,0.40655546]
[1617991312164,0.81341346,58412.0,58411.0,0.10725655]
[1617991312364,0.81341346,58412.0,58411.0,0.37725655]
[1617991312565,0.81341346,58412.0,58411.0,0.67649978]
[1617991312765,0.92067001,58412.0,58411.0,0.67649978]
[1617991313171,1.01779715,58412.0,58411.0,0.67649978]
[1617991314067,1.01779715,58412.0,58411.0,0.37725655]
[1617991317574,1.52611471,58412.0,58411.0,0.37725655]
[1617991317973,1.01779715,58412.0,58411.0,0.37725655]
[1617991324885,1.01779715,58412.0,58411.0,0.27]
[1617991325084,1.52587702,58412.0,58408.0,0.29984041]
[1617991325287,3.0474,58409.0,58405.0,0.30001383]
[1617991325485,4.50932164,58409.0,58401.0,0.30017447]
[1617991325684,4.14352461,58409.0,58401.0,0.30017447]
[1617991325886,0.3658128,58402.0,58401.0,0.30017447]
[1617991326085,1.01289476,58402.0,58397.0,0.3003585]
[1617991326286,2.01289476,58402.0,58401.0,0.27]
[1617991326486,4.02095791,58402.0,58401.0,0.27]
[1617991326785,4.02095791,58402.0,58392.0,0.30052144]
[1617991326786,3.27250912,58402.0,58392.0,0.30052144]
[1617991326988,0.50786914,58399.0,58396.0,0.27]
[1617991327302,1.3205263,58397.0,58393.0,0.01]
[1617991327512,0.81231399,58394.0,58392.0,0.26]
[1617991327704,0.81228384,58393.0,58392.0,0.26]
[1617991327916,0.81228384,58393.0,58391.0,0.01]
[1617991328105,0.81228384,58393.0,58390.0,0.26]
[1617991328318,0.44674596,58393.0,58392.0,0.27]
[1617991328587,0.95619947,58393.0,58388.0,0.30043832]
[1617991328786,0.95619947,58393.0,58392.0,0.27]
[1617991329187,0.36539951,58389.0,58388.0,0.30043832]
[1617991329888,0.36539951,58389.0,58388.0,0.27]
[1617991330288,0.36539951,58389.0,58386.0,0.30046399]
[1617991330490,0.36539951,58389.0,58387.0,0.27]
[1617991330689,0.10725655,58388.0,58387.0,0.27]